bitfinex-derivatives/quotes_ETHF0:USTF0_20250902
["timestamp","ask_amount","ask_price","bid_price","bid_amount"]
[1756844443190,0.1636,4310.9,4310.8,0.247]
[1756844446392,0.3071,4311.8,4310.8,4.247]
[1756844446689,0.1207,4312.0,4311.6,3.2078]
[1756844446891,0.3071,4311.9,4311.7,0.247]
[1756844447093,0.1207,4312.0,4311.7,0.247]
[1756844447488,0.1207,4312.5,4311.7,0.247]
[1756844447688,0.3071,4312.4,4311.7,0.247]
[1756844447890,0.3071,4312.4,4311.8,0.247]
[1756844448287,0.3071,4312.4,4311.9,0.247]
[1756844448487,0.1207,4312.5,4312.1,3.2078]
[1756844448695,0.3071,4312.4,4312.2,0.247]
[1756844449200,0.3071,4312.9,4312.2,0.247]
[1756844449591,0.3071,4312.9,4312.6,3.2078]
[1756844449792,0.3071,4312.9,4312.7,0.247]
[1756844450398,0.1292,4312.5,4312.1,3.2078]
[1756844450593,0.3071,4312.4,4311.8,0.247]
[1756844450793,0.1292,4312.0,4311.7,0.247]
[1756844450996,0.3071,4311.9,4311.7,0.247]
[1756844451297,0.3071,4311.9,4311.6,3.2078]
[1756844451503,0.3071,4311.9,4311.8,0.247]
[1756844452388,0.1292,4312.0,4311.6,3.2078]
[1756844452700,0.3071,4311.9,4311.7,0.247]
[1756844453693,0.3071,4311.9,4311.6,3.2078]
[1756844453895,0.3071,4311.9,4311.7,0.247]
[1756844454395,0.1292,4312.0,4311.7,0.247]
[1756844454794,0.3071,4311.9,4311.7,0.247]
[1756844455094,0.1292,4312.0,4311.7,0.247]
[1756844455398,0.3071,4311.9,4311.7,0.247]
[1756844455700,0.1292,4312.0,4311.6,3.2078]
[1756844455897,0.3071,4311.9,4311.6,3.2078]
[1756844456288,0.1292,4312.0,4311.7,0.247]
[1756844456493,0.3071,4312.4,4311.9,0.41741]
[1756844456690,0.3071,4312.4,4312.2,3.2078]
[1756844456999,0.3071,4312.9,4312.3,0.247]
[1756844457990,0.4363,4313.5,4312.9,0.41731]
[1756844458194,0.3071,4313.4,4313.3,3.2078]
[1756844458391,0.3071,4313.4,4313.3,3.4548]
[1756844459205,0.3071,4313.9,4313.3,0.247]
[1756844459805,3.337,4314.5,4313.3,3.4548]
[1756844459806,0.3071,4314.2,4313.3,3.4548]
[1756844460098,0.3071,4314.4,4313.9,3.2078]
[1756844460307,0.3071,4314.4,4314.0,0.247]
[1756844460597,0.1292,4314.5,4314.0,0.247]
[1756844461604,0.1292,4315.0,4314.4,3.2078]
[1756844461791,0.1292,4315.0,4314.5,0.247]
[1756844461995,0.3071,4314.9,4314.5,0.247]
[1756844462197,0.1292,4315.0,4314.5,0.247]
[1756844462500,0.1292,4315.0,4313.9,3.2078]
[1756844462501,0.1292,4314.5,4313.9,3.2078]
[1756844462700,0.4363,4314.0,4313.9,3.2078]
[1756844462907,0.3071,4314.0,4313.9,3.2078]
[1756844463197,0.3071,4314.0,4313.9,3.4548]
[1756844463798,0.4363,4314.0,4313.9,3.4548]
[1756844464400,0.4363,4314.0,4313.9,3.2078]
[1756844464706,0.4363,4314.0,4313.9,3.4548]
[1756844465204,0.4363,4314.0,4312.7,31.84771922]
[1756844465205,4.1292,4314.0,4312.8,3.2078]
[1756844465507,0.3071,4312.9,4312.4,0.81143621]
[1756844465798,0.1292,4313.0,4312.3,3.2078]
[1756844465799,0.3071,4312.4,4312.3,3.2078]
[1756844465999,0.3071,4312.4,4312.3,3.4548]
[1756844467704,0.3071,4312.4,4312.3,3.2078]
[1756844467902,0.3071,4312.4,4312.3,3.4548]
[1756844468097,0.3071,4312.4,4312.3,3.2078]
[1756844469608,0.3071,4312.4,4311.8,0.247]
[1756844469810,0.1292,4312.0,4311.8,0.247]
[1756844470008,0.3071,4311.9,4311.8,0.247]
[1756844470208,3.337,4312.5,4311.8,0.247]
[1756844470411,0.3071,4312.4,4311.8,0.247]
[1756844471407,3.337,4312.5,4311.6,3.2078]
[1756844471803,0.3095,4311.9,4311.7,0.247]
[1756844471997,0.3095,4311.9,4311.6,3.2078]
[1756844472202,0.1234,4312.0,4311.6,3.4548]
[1756844472401,0.3095,4311.9,4311.6,3.4548]
[1756844472604,0.3095,4312.4,4311.6,3.4548]
[1756844473102,0.3095,4312.4,4311.7,0.247]
[1756844473305,0.3095,4312.4,4311.8,0.247]
[1756844473504,0.3095,4311.9,4311.8,0.247]
[1756844473805,0.1234,4312.0,4311.8,0.247]
[1756844474110,0.1234,4312.0,4311.6,3.2078]
[1756844474304,0.3095,4311.9,4311.6,0.247]
[1756844474504,3.2078,4311.8,4310.8,0.81143621]
[1756844474698,0.1234,4311.5,4311.0,0.247]
[1756844475206,0.3095,4311.4,4311.0,0.247]
[1756844475406,0.1234,4311.5,4311.0,0.247]
[1756844476108,0.3095,4311.4,4311.0,0.247]
[1756844476617,0.1234,4311.5,4311.0,0.247]
[1756844478004,0.3095,4311.4,4311.0,0.247]
[1756844478312,0.3095,4311.5,4311.3,3.2078]
[1756844478613,0.3095,4312.4,4311.6,0.41744]
[1756844478903,0.3095,4312.4,4311.3,3.4548]
[1756844478904,0.3095,4312.4,4312.0,0.4174]
[1756844479108,0.3095,4312.4,4312.1,0.247]
[1756844479309,3.2078,4312.8,4312.1,0.247]
[1756844479610,0.3095,4312.7,4312.2,0.41737]
[1756844479807,0.1234,4313.5,4312.6,3.2078]
[1756844479808,3.2078,4313.4,4312.6,3.2078]
[1756844480007,0.3095,4313.7,4313.2,3.2078]
[1756844480310,0.3095,4313.9,4313.6,0.41724]
[1756844480500,0.1234,4314.5,4313.8,0.41722]
[1756844480704,0.4329,4314.5,4313.9,0.41721]
[1756844481499,0.4329,4314.5,4313.7,3.4548]
[1756844482003,0.4329,4314.5,4313.8,0.247]
[1756844482004,0.1234,4314.5,4313.8,0.247]
[1756844482206,0.1234,4314.0,4313.8,0.247]
[1756844482410,0.3095,4313.9,4313.8,0.247]
[1756844482817,0.1234,4314.5,4313.8,0.247]
[1756844482818,0.3095,4314.4,4313.8,0.247]
[1756844483707,0.1234,4313.5,4313.3,0.81143621]
[1756844484010,0.3095,4313.4,4313.1,3.2078]
[1756844484411,0.1234,4313.5,4313.1,3.2078]
[1756844484612,0.3095,4313.4,4313.1,3.2078]
[1756844485009,0.1234,4313.5,4313.1,3.2078]
[1756844485408,0.3095,4313.4,4313.1,3.2078]
[1756844485710,0.1234,4313.5,4313.2,0.247]
[1756844485910,0.3095,4313.4,4313.2,0.247]
[1756844486108,0.1234,4313.5,4313.2,0.247]
[1756844487104,0.3095,4313.4,4313.1,3.2078]
[1756844487305,0.3095,4313.4,4312.3,31.84671922]
[1756844487306,0.3095,4313.4,4312.4,0.81143621]
[1756844487516,3.3312,4313.5,4312.5,0.56966489]
[1756844487712,0.3095,4313.4,4312.6,0.32266489]
[1756844487911,0.3095,4313.4,4312.5,0.247]
[1756844488108,0.1234,4313.0,4312.3,3.2078]
[1756844488308,0.3095,4313.4,4312.3,3.2078]
[1756844488309,0.3095,4313.4,4312.8,3.2078]
[1756844488614,0.3095,4313.7,4313.2,0.41728]
[1756844488807,0.3095,4313.7,4313.3,3.77740384]
[1756844489009,0.3095,4313.7,4313.4,0.247]
[1756844489208,0.3095,4314.2,4313.4,0.247]
[1756844489516,0.3095,4314.2,4313.5,1.55117987]
[1756844489718,0.3095,4314.2,4313.6,0.32249366]
[1756844489905,3.2078,4314.3,4313.7,0.247]
[1756844490112,0.31791,4314.7,4313.9,0.81143621]
[1756844490319,0.31791,4314.7,4313.7,0.247]
[1756844490320,0.31791,4314.7,4314.4,3.2078]
[1756844490513,0.00841,4314.7,4314.5,0.66415]
[1756844491115,0.00841,4314.7,4314.6,3.2078]
[1756844491314,0.00841,4314.7,4314.6,7.43956999]
[1756844491518,0.00841,4314.7,4314.6,7.76199395]
[1756844491816,0.00841,4314.7,4314.6,8.34166017]
[1756844492118,0.00841,4314.7,4314.6,3.77622396]
[1756844492420,0.31791,4314.7,4314.6,3.77622396]
[1756844492619,0.00841,4314.7,4314.6,7.77622396]
[1756844493218,0.31791,4314.7,4314.6,3.77622396]
[1756844493420,0.31791,4314.7,4314.6,3.4538]
[1756844493609,0.31791,4314.7,4314.6,3.7760482]
[1756844494116,0.31791,4314.7,4314.6,3.4538]
[1756844497619,2.64911,4315.4,4314.6,3.4538]
[1756844497828,2.64911,4315.4,4314.7,0.2975]
[1756844498120,2.64911,4315.4,4314.8,0.246]
[1756844498419,0.3694,4316.0,4314.8,0.246]
[1756844498624,0.1234,4316.0,4314.9,0.2975]
[1756844498818,0.1234,4316.0,4315.1,3.2078]
[1756844499015,3.2078,4316.2,4315.2,0.2975]
[1756844499317,3.2078,4316.2,4315.3,0.246]
[1756844499722,0.3095,4316.1,4315.3,0.246]
[1756844501922,3.2078,4316.2,4315.3,0.246]
[1756844501923,0.2935,4315.9,4315.3,0.246]
[1756844502424,0.1265,4316.0,4315.1,3.2078]
[1756844502613,0.2935,4315.9,4315.2,0.246]
[1756844502813,0.1265,4316.0,4315.2,0.246]
[1756844503025,0.2935,4315.9,4315.2,0.246]
[1756844503819,3.2078,4315.6,4314.6,3.2078]
[1756844504023,0.42,4315.5,4314.7,0.246]
[1756844504223,0.2935,4315.5,4314.7,0.246]
[1756844504421,0.2935,4315.5,4314.8,0.3164]
[1756844504723,0.2935,4315.5,4314.8,0.73352]
[1756844504927,0.2935,4315.5,4315.1,3.5242]
[1756844505116,0.2935,4316.1,4315.2,0.5624]
[1756844505622,1.22924535,4318.0,4315.2,0.5624]
[1756844505623,0.2935,4317.6,4316.1,0.3164]
[1756844505824,0.2935,4317.6,4316.7,0.41693]
[1756844506118,0.2935,4317.6,4316.0,0.91923621]
[1756844506119,0.2935,4317.9,4317.0,0.3164]
[1756844506321,0.2935,4317.6,4317.0,0.5624]
[1756844507118,3.2078,4318.2,4317.0,3.4538]
[1756844507320,0.1265,4318.5,4317.1,0.3164]
[1756844507321,0.2935,4318.1,4317.1,0.3164]
[1756844507625,0.2316,4318.4,4317.1,0.7333]
[1756844507826,0.2935,4318.1,4317.1,0.3164]
[1756844508025,0.2935,4317.9,4317.2,0.41689]
[1756844508325,0.2935,4317.9,4317.0,3.4538]
[1756844508326,0.2935,4317.9,4317.3,0.41688]
[1756844508521,0.2935,4317.9,4317.5,0.3164]
[1756844508717,0.2935,4317.9,4317.5,3.2078]
[1756844508916,0.2935,4317.9,4317.5,3.4538]
[1756844509122,0.2935,4317.9,4317.6,0.3164]
[1756844509424,0.2935,4318.4,4317.6,0.3164]
[1756844509820,0.2935,4319.0,4318.1,0.3164]
[1756844510019,0.2935,4319.0,4318.2,0.246]
[1756844510214,3.2078,4319.2,4318.3,0.3164]
[1756844510414,0.246,4319.7,4318.6,0.3164]
[1756844510415,0.2935,4319.3,4318.6,0.3164]
[1756844510622,0.2935,4319.3,4318.5,3.2078]
[1756844510827,0.2935,4319.3,4318.6,0.3164]
[1756844511021,3.2078,4319.7,4318.7,0.246]
[1756844511320,3.2078,4319.7,4318.5,3.2078]
[1756844511321,0.1265,4319.5,4318.5,3.2078]
[1756844511927,0.2935,4319.4,4318.5,3.2078]
[1756844512123,0.1265,4319.5,4318.5,3.2078]
[1756844512423,0.1265,4319.5,4318.4,0.248]
[1756844512424,0.2935,4318.8,4318.4,0.248]
[1756844512819,3.2078,4318.9,4317.4,3.2078]
[1756844512820,3.4558,4318.9,4317.4,3.2078]
[1756844513125,0.2935,4318.0,4317.4,3.2078]
[1756844513625,0.2935,4318.0,4316.5,0.2608]
[1756844513626,0.2935,4317.4,4316.5,0.2608]
[1756844513826,3.3343,4317.5,4316.4,3.2078]
[1756844514021,3.2078,4316.9,4315.9,3.4686]
[1756844514520,3.2078,4316.9,4315.9,3.2078]
[1756844514724,0.2935,4316.8,4316.0,0.2608]
[1756844514922,0.2935,4317.4,4316.2,0.2608]
[1756844515125,0.2935,4317.4,4316.5,0.67776]
[1756844515323,0.2935,4317.4,4316.7,0.2608]
[1756844515531,0.2935,4317.4,4316.7,0.67773]
[1756844515826,0.248,4317.9,4317.0,0.2608]
[1756844515827,0.2935,4317.9,4317.0,0.2608]
[1756844516023,3.2078,4317.8,4317.0,0.2608]
[1756844516224,3.2078,4317.8,4316.7,0.248]
[1756844516225,0.2935,4317.7,4316.7,0.248]
[1756844517132,0.42,4317.0,4315.9,0.248]
[1756844517425,0.668,4317.0,4315.9,0.248]
[1756844517618,0.3745,4317.0,4315.7,3.4686]
[1756844517823,0.52518001,4316.9,4315.8,0.31782155]
[1756844518022,0.1265,4316.5,4315.7,3.2078]
[1756844518428,0.2935,4316.4,4315.7,3.2078]
[1756844518626,3.4558,4316.6,4315.8,0.2608]
[1756844518819,0.2935,4316.8,4315.8,0.2608]
[1756844519025,0.2935,4316.8,4316.0,0.41701]
[1756844519226,0.2935,4316.8,4316.1,0.2608]
[1756844519429,0.1265,4317.5,4316.2,0.73516498]
[1756844519430,0.248,4317.2,4316.2,0.73516498]
[1756844519728,0.248,4317.2,4316.3,3.2078]
[1756844520132,3.2078,4317.3,4316.3,3.2078]
[1756844520323,0.2935,4317.7,4316.9,3.2078]
[1756844520634,0.2935,4317.7,4317.0,0.92571]
[1756844520934,0.1265,4318.0,4316.9,3.2078]
[1756844521233,0.1265,4317.5,4316.9,3.2078]
[1756844521430,0.2935,4317.4,4316.5,0.248]
[1756844521640,0.1265,4317.0,4315.9,0.2608]
[1756844521936,3.2078,4316.7,4315.7,3.4558]
[1756844522227,0.2935,4316.6,4315.8,0.41703]
[1756844522429,0.2935,4316.6,4315.7,3.4558]
[1756844522822,0.248,4316.8,4315.7,3.4558]
[1756844523022,0.52518001,4316.7,4315.7,3.4558]
[1756844523227,0.2935,4316.4,4315.7,3.4558]
[1756844523729,0.1265,4316.5,4315.7,3.4558]
[1756844524132,0.2935,4315.9,4315.7,3.2078]
[1756844524428,3.2078,4316.4,4315.7,3.2078]
[1756844524429,0.2935,4316.3,4315.7,3.2078]
[1756844524630,3.2078,4316.4,4315.8,0.2608]
[1756844525130,3.2078,4316.4,4315.9,0.41701]
[1756844525330,3.2078,4316.4,4315.8,0.23169]
[1756844525331,3.2078,4316.4,4316.0,0.66501]
[1756844525637,3.2078,4316.4,4316.2,0.2614]
[1756844525932,0.2935,4316.3,4315.7,3.4692]
[1756844526127,0.2935,4316.3,4315.9,0.2614]
[1756844526531,3.2078,4316.4,4315.9,0.2614]
[1756844526733,0.2935,4316.8,4316.0,0.23169]
[1756844526934,0.2935,4316.8,4316.1,5.335]
[1756844527331,0.2935,4316.2,4316.1,5.335]
[1756844527638,0.1265,4317.0,4316.1,5.335]
[1756844527639,0.2935,4316.9,4316.2,0.2614]
[1756844527843,3.2078,4317.6,4316.2,0.67839]
[1756844528139,3.2078,4317.6,4316.6,0.2614]
[1756844528140,0.2935,4317.3,4316.6,0.2614]
[1756844528432,3.2078,4317.6,4316.7,5.335]
[1756844528735,0.2935,4317.7,4317.1,0.2614]
[1756844529235,0.2935,4317.7,4317.0,3.2078]
[1756844529544,0.2935,4317.7,4317.0,0.2614]
[1756844529840,0.2935,4317.7,4317.0,3.4692]
[1756844530038,0.248,4317.9,4317.0,3.2078]
[1756844530339,0.2935,4317.8,4317.0,3.2078]
[1756844530840,3.4558,4317.9,4317.0,3.2078]
[1756844531038,3.2078,4317.3,4316.4,3.2078]
[1756844531233,0.2987,4317.2,4316.5,0.31860245]
[1756844531429,0.2987,4317.2,4316.4,3.2078]
[1756844532437,0.53035,4317.2,4316.4,3.2078]
[1756844532733,0.23165,4317.1,4316.4,3.2078]
[1756844532934,0.23165,4317.1,4315.4,0.2607]
[1756844532935,3.3303,4316.5,4315.4,0.2607]
[1756844533130,0.2987,4316.3,4315.3,3.2078]
[1756844533331,0.2987,4316.3,4315.4,0.31892171]
[1756844533534,0.2987,4316.3,4315.3,3.2078]
[1756844533535,0.247,4316.2,4315.5,0.31889871]
[1756844533842,0.247,4316.2,4315.3,3.2078]
[1756844534041,0.2987,4316.1,4315.4,0.31888944]
[1756844534335,0.1225,4316.0,4315.3,3.2078]
[1756844534538,3.2078,4315.8,4314.3,4.01923621]
[1756844534727,0.2987,4315.2,4314.4,0.31916331]
[1756844534934,0.2987,4315.2,4314.5,0.31916331]
[1756844535138,0.2987,4315.2,4314.6,0.57986331]
[1756844535439,0.2987,4315.2,4314.6,0.2607]
[1756844536429,0.247,4315.6,4314.6,0.2607]
[1756844536641,0.2987,4315.5,4314.6,0.2607]
[1756844537143,0.4212,4315.5,4314.6,0.2607]
[1756844538638,0.1225,4315.5,4314.4,0.247]
[1756844538843,0.2987,4315.2,4314.3,3.2078]
[1756844539037,0.247,4315.1,4314.3,3.2078]
[1756844539354,0.1225,4315.0,4314.3,3.2078]
[1756844539537,0.1225,4315.0,4313.5,1.48741922]
[1756844539538,0.1225,4314.5,4313.7,3.2078]
[1756844540236,0.3695,4314.5,4313.7,3.2078]
[1756844540436,0.2987,4314.4,4313.7,3.2078]
[1756844541240,0.3695,4314.5,4313.7,3.2078]
[1756844541437,0.3695,4314.5,4313.2,1.07213621]
[1756844541438,0.2987,4313.9,4313.2,3.2078]
[1756844541643,0.247,4313.9,4313.2,3.2078]
[1756844541842,0.2987,4313.8,4313.2,3.2078]
[1756844542439,0.247,4313.9,4313.2,3.2078]
[1756844542636,0.2987,4313.8,4313.2,3.2078]
[1756844542836,0.247,4313.9,4313.2,3.2078]
[1756844543032,0.2987,4313.8,4313.2,3.2078]
[1756844543444,0.247,4313.9,4313.2,3.2078]
[1756844543740,0.2987,4313.8,4313.2,3.2078]
[1756844543945,0.247,4313.9,4313.2,3.2078]
[1756844544541,0.2987,4313.4,4313.2,3.2078]
[1756844544739,0.2987,4313.4,4312.8,0.17621758]
[1756844544740,0.5457,4313.3,4312.8,0.17621758]
[1756844545047,3.5065,4312.9,4312.8,0.17621758]
[1756844545541,7.5065,4312.9,4312.8,0.17621758]
[1756844545944,7.7535,4312.9,4312.8,0.17621758]
[1756844546447,7.5065,4312.9,4312.8,0.17621758]
[1756844546748,7.7535,4312.9,4312.8,0.17621758]
[1756844547637,0.2987,4312.8,4311.3,3.4548]
[1756844547845,0.2987,4312.2,4311.3,3.4548]
[1756844548141,0.5457,4312.1,4311.3,3.2078]
[1756844548346,0.5457,4312.1,4311.4,0.3108]
[1756844548543,3.2078,4312.9,4311.4,0.3108]
[1756844548745,0.2987,4312.8,4312.0,0.3108]
[1756844549444,0.247,4312.7,4312.0,0.3108]
[1756844550354,3.2078,4312.9,4312.0,0.3108]
[1756844550547,3.2078,4312.9,4311.0,0.1084]
[1756844550548,0.2987,4313.4,4312.7,0.3108]
[1756844550851,3.2078,4313.5,4312.6,0.3108]
[1756844551049,3.2078,4313.5,4312.7,0.41733]
[1756844551248,0.247,4313.5,4313.0,3.5186]
[1756844552348,0.4143,4313.1,4313.0,3.2078]
[1756844553142,0.4143,4313.1,4312.5,0.3108]
[1756844553955,0.4143,4313.1,4312.3,3.2078]
[1756844554150,0.2987,4313.0,4312.3,3.2078]
[1756844554350,0.247,4312.9,4312.3,3.2078]
[1756844554556,0.247,4312.8,4312.3,3.2078]
[1756844554855,0.1225,4313.0,4312.3,3.2078]
[1756844554856,0.1156,4313.1,4312.5,0.41734]
[1756844555051,0.1156,4313.1,4313.0,0.3108]
[1756844555248,0.2987,4314.1,4313.0,0.3108]
[1756844555552,0.2987,4314.1,4312.9,0.6643]
[1756844555553,0.2987,4314.1,4313.4,0.3108]
[1756844556654,0.5457,4314.1,4313.4,0.3108]
[1756844557053,0.2987,4314.3,4313.4,0.3108]
[1756844557351,0.247,4314.5,4313.7,0.3108]
[1756844557953,0.5457,4314.5,4313.7,0.3108]
[1756844558352,0.6682,4314.5,4313.4,0.247]
[1756844558551,0.1225,4314.5,4313.3,3.2078]
[1756844558746,0.2987,4314.3,4313.3,3.2078]
[1756844558953,0.2987,4314.3,4313.4,0.3108]
[1756844558954,0.247,4314.2,4313.4,0.3108]
[1756844559357,0.2987,4314.1,4313.4,0.3108]
[1756844559558,0.2987,4314.1,4313.3,3.2078]
[1756844560057,0.5457,4314.1,4313.4,0.3108]
[1756844561555,0.2987,4314.1,4313.4,0.3108]
[1756844562054,0.2945,4314.1,4313.3,3.2078]
[1756844562248,0.1247,4314.0,4313.3,3.2078]
[1756844562452,0.2945,4313.9,4313.3,3.2078]
[1756844562651,0.2945,4313.7,4313.3,3.2078]
[1756844562862,3.2078,4313.6,4312.6,3.2078]
[1756844563060,0.2945,4313.4,4312.6,3.2078]
[1756844563361,0.2945,4313.4,4312.7,0.32784002]
[1756844563564,0.1247,4313.5,4312.6,3.2078]
[1756844563761,0.2945,4313.4,4312.7,0.32785537]
[1756844563960,0.2945,4313.4,4312.6,3.2078]
[1756844564156,0.2945,4313.4,4312.7,0.32785441]
[1756844564368,0.52635,4313.4,4312.8,0.32785441]
[1756844564569,0.2945,4312.9,4312.6,3.2078]
[1756844564757,0.1247,4313.0,4312.6,3.2078]
[1756844564758,0.3717,4313.0,4312.6,3.2078]
[1756844565063,0.2945,4312.9,4312.6,3.2078]
[1756844565453,0.2945,4312.6,4311.7,0.81143621]
[1756844565660,0.2945,4312.4,4311.8,0.32834833]
[1756844565858,0.247,4312.3,4311.9,0.32834833]
[1756844566057,0.247,4312.3,4311.4,4.01923621]
[1756844566058,0.2945,4312.2,4311.4,4.01923621]
[1756844566364,0.2945,4312.2,4311.5,0.32846514]
[1756844566565,0.2945,4312.2,4311.6,0.32846514]
[1756844566858,0.2945,4312.3,4311.7,0.32846514]
[1756844567058,3.2078,4312.7,4311.9,3.5252]
[1756844567262,0.2945,4314.2,4312.6,3.2078]
[1756844567460,0.2945,4314.7,4313.8,3.2078]
[1756844567773,0.2945,4314.7,4313.9,0.32842694]
[1756844568063,0.2945,4314.7,4314.0,0.32842694]
[1756844568267,0.2945,4314.7,4314.1,0.32842694]
[1756844568562,0.2945,4314.7,4313.8,3.2078]
[1756844568563,0.2945,4314.8,4314.2,0.32842694]
[1756844568867,0.2945,4314.8,4314.3,0.32842694]
[1756844569059,0.2945,4314.8,4314.4,0.32842694]
[1756844569262,1.22924535,4314.9,4314.5,0.32842694]
[1756844569455,0.2945,4314.9,4313.8,3.2078]
[1756844569660,0.2945,4314.9,4313.9,0.33430824]
[1756844569858,3.2078,4314.7,4314.0,0.33430824]
[1756844570063,0.2945,4314.4,4314.1,0.33430824]
[1756844570363,0.2945,4313.9,4313.8,3.2078]
[1756844570668,0.2945,4313.9,4313.8,3.54223558]
[1756844570867,3.5023,4313.9,4313.8,0.33443558]
[1756844571066,0.2945,4312.9,4312.7,0.81143621]
[1756844571272,0.2945,4312.9,4312.8,0.33464518]
[1756844571866,3.3325,4314.0,4312.8,0.33464518]
[1756844572172,0.2945,4313.9,4313.3,3.62506]
[1756844572465,3.2078,4314.4,4313.4,0.33464518]
[1756844572466,0.2945,4314.4,4313.4,0.33464518]
[1756844572665,0.2945,4314.4,4313.5,0.33464518]
[1756844572860,0.2945,4314.4,4313.3,3.62506]
[1756844572861,3.4588,4314.4,4313.6,0.33449709]
[1756844573066,0.2945,4314.3,4313.7,0.33449709]
[1756844573367,0.2945,4314.3,4313.3,3.2078]
[1756844573368,0.1247,4314.5,4313.8,0.33449709]
[1756844573562,0.3757,4314.5,4313.9,0.33448589]
[1756844573768,0.2945,4314.4,4313.3,4.01923621]
[1756844573962,0.2945,4314.4,4313.4,0.33448614]
[1756844574162,3.3325,4314.0,4313.5,0.33448614]
[1756844574462,0.251,4313.9,4312.8,3.2078]
[1756844574657,3.627,4313.5,4312.9,0.33462202]
[1756844574959,3.3325,4313.5,4313.0,0.33462202]
[1756844575164,0.2945,4313.4,4313.1,0.33462202]
[1756844575360,0.2945,4313.4,4312.8,3.2078]
[1756844575565,3.3325,4313.5,4312.9,0.33467788]
[1756844575566,3.5835,4313.5,4312.9,0.33467788]
[1756844575761,3.5835,4313.5,4313.0,0.33467788]
[1756844576063,0.2945,4313.4,4313.1,0.33467788]
[1756844576370,0.2945,4313.4,4312.8,3.2078]
[1756844576573,0.2945,4313.4,4312.9,0.33470775]
[1756844576869,0.2945,4313.4,4313.0,0.33470775]
[1756844577065,3.5835,4313.5,4312.8,3.2078]
[1756844577263,0.4192,4313.0,4312.9,0.33474515]
[1756844578863,3.3325,4313.5,4312.9,0.75204515]
[1756844579065,3.2078,4313.5,4313.0,1.14618136]
[1756844579264,3.2078,4313.5,4313.1,0.33474515]
[1756844579265,3.3325,4313.5,4313.1,0.33474515]
[1756844579471,0.2945,4313.4,4313.2,0.33474515]
[1756844579669,0.2945,4313.4,4313.3,0.33474515]
[1756844580381,0.2945,4313.4,4312.7,0.81143621]
[1756844580382,0.1247,4313.0,4312.7,0.81143621]
[1756844580570,0.1247,4313.0,4312.8,0.33501537]
[1756844580873,0.1247,4314.0,4313.2,0.41727]
[1756844581074,0.1247,4314.0,4313.7,3.2078]
[1756844581274,0.2945,4313.9,4313.3,0.81705773]
[1756844581475,0.1247,4314.0,4313.4,0.33485959]
[1756844581774,0.2945,4313.9,4313.5,0.33485959]
[1756844581968,0.2945,4313.8,4313.6,0.33485959]
[1756844582175,0.2945,4313.9,4313.3,0.81705773]
[1756844582368,0.2945,4313.9,4313.4,0.33493673]
[1756844582571,0.3757,4314.0,4313.5,0.33493673]
[1756844582767,0.2945,4313.7,4313.6,0.33493673]
[1756844583575,3.5825,4314.0,4313.1,0.81705773]
[1756844583768,0.1247,4313.5,4313.2,0.33502138]
[1756844583976,0.3747,4313.5,4313.0,5.335]
[1756844584280,0.3747,4313.5,4312.6,3.2078]
[1756844584281,0.1247,4313.0,4312.7,0.81705773]
[1756844584465,0.2945,4312.9,4312.8,0.33507837]
[1756844584864,0.2945,4313.4,4312.8,4.75238837]
[1756844585178,0.25,4313.6,4313.1,3.2078]
[1756844585379,0.25,4313.6,4313.2,0.33489258]
[1756844585577,0.2945,4313.9,4313.3,0.33489258]
[1756844585780,0.1247,4314.0,4313.1,4.02485773]
[1756844585781,0.1247,4314.0,4313.4,0.33489258]
[1756844586071,0.2945,4313.9,4313.4,0.81705773]
[1756844586281,0.1247,4314.0,4313.5,0.33481369]
[1756844586475,0.2945,4313.9,4313.6,0.33481369]
[1756844586678,0.4192,4314.0,4313.4,0.81705773]
[1756844586877,0.1247,4314.0,4313.5,0.33481973]
[1756844587080,0.1247,4314.0,4313.6,0.33481973]
[1756844587081,0.2945,4313.9,4313.6,0.33481973]
[1756844587379,0.2945,4313.9,4313.7,0.33481973]
[1756844587582,0.1247,4314.0,4313.5,0.81705773]
[1756844587772,0.2945,4313.9,4313.6,0.33481088]
[1756844587968,0.1247,4314.0,4313.3,0.81705773]
[1756844588173,0.1247,4314.0,4313.4,0.33484411]
[1756844588174,0.25,4313.9,4313.4,0.33484411]
[1756844588377,0.2945,4313.9,4313.5,0.33484411]
[1756844588581,0.1247,4314.0,4313.3,0.81705773]
[1756844588884,0.1247,4314.0,4313.4,1.15193131]
[1756844589083,0.2945,4313.9,4313.5,0.33487358]
[1756844589379,0.1247,4314.0,4313.4,0.81705773]
[1756844589576,0.2945,4313.9,4313.5,0.33486831]
[1756844589782,0.2945,4313.9,4313.4,0.81705773]
[1756844589981,0.25,4313.8,4313.3,0.81705773]
[1756844590177,0.2945,4313.9,4313.4,1.15206884]
[1756844590376,0.2945,4313.9,4313.5,0.33505427]
[1756844590579,0.6692,4314.0,4313.4,0.81705773]
[1756844590780,0.3747,4314.0,4313.5,0.33506505]
[1756844590975,0.3747,4314.0,4313.4,0.81705773]
[1756844591180,0.1247,4314.0,4313.5,0.33506245]
[1756844591483,0.1247,4314.0,4313.4,0.81705773]
[1756844591781,0.1247,4314.0,4313.5,0.3350477]
[1756844591980,0.1247,4314.0,4313.4,0.81705773]
[1756844592183,0.2918,4313.9,4313.5,0.33504667]
[1756844592382,0.1247,4314.0,4313.4,0.81705773]
[1756844592579,0.1247,4314.0,4313.2,0.81705773]
[1756844592580,3.2078,4313.6,4313.2,0.81705773]